bitfinex/quotes_SOLUSD_20241122
["timestamp","ask_amount","ask_price","bid_price","bid_amount"]
[1732241300909,9.83750353,256.8,256.66,23.776884]
[1732241301221,136.9,256.79,256.66,23.776884]
[1732241302403,146.73750353,256.82,256.68,23.776884]
[1732241302607,9.83750353,256.78,256.67,4.96120508]
[1732241302802,9.83750353,256.78,256.68,23.776884]
[1732241304816,9.83750353,256.78,256.67,4.96120508]
[1732241304817,9.83750353,256.78,256.67,23.776884]
[1732241305008,9.83750353,256.8,256.67,23.776884]
[1732241306114,9.83750353,256.8,256.66,8.44152901]
[1732241307728,9.83750353,256.74,256.65,26.605]
[1732241307922,136.9,256.73,256.65,26.605]
[1732241309212,9.83750353,256.72,256.59,43.11982901]
[1732241309412,136.9,256.71,256.59,43.11982901]
[1732241311623,136.9,256.71,256.6,3.8598311]
[1732241311817,136.9,256.71,256.61,3.8598311]
[1732241312020,136.9,256.71,256.62,3.8598311]
[1732241312314,136.9,256.71,256.64,3.8598311]
[1732241313133,136.9,256.71,256.65,3.8598311]
[1732241313311,136.9,256.74,256.65,3.8598311]
[1732241313833,136.9,256.74,256.66,3.8598311]
[1732241314030,136.9,256.74,256.65,3.8598311]
[1732241315111,136.9,256.74,256.64,3.8598311]
[1732241315422,146.73750353,256.74,256.6,4.54552901]
[1732241316443,9.83750353,256.72,256.6,4.54552901]
[1732241316734,9.83750353,256.7,256.59,38.5743]
[1732241316944,136.9,256.69,256.59,38.5743]
[1732241317735,136.9,256.69,256.59,27.5548]
[1732241317939,9.83750353,256.68,256.59,27.5548]
[1732241318730,9.83750353,256.68,256.53,9.50673409]
[1732241318731,9.83750353,256.66,256.54,27.5548]
[1732241318917,136.9,256.65,256.54,27.5548]
[1732241319117,146.73750353,256.65,256.54,27.5548]
[1732241320440,136.9,256.64,256.54,27.5548]
[1732241320617,29.7421,256.75,256.54,27.5548]
[1732241320618,136.9,256.63,256.54,27.5548]
[1732241321944,31.137,256.75,256.55,23.776884]
[1732241321945,136.9,256.67,256.55,23.776884]
[1732241322239,136.9,256.67,256.55,28.32241301]
[1732241322928,136.9,256.67,256.56,3.886]
[1732241327038,136.9,256.71,256.56,3.886]
[1732241327243,136.9,256.7,256.56,3.886]
[1732241327934,136.9,256.7,256.55,28.32241301]
[1732241327935,9.83750353,256.68,256.55,4.54552901]
[1732241328624,9.83750353,256.66,256.55,4.54552901]
[1732241328831,136.9,256.65,256.54,27.5548]
[1732241329133,146.73750353,256.64,256.54,27.5548]
[1732241329452,146.73750353,256.64,256.45,4.96120508]
[1732241329453,9.83750353,256.6,256.47,27.4328]
[1732241329620,136.9,256.59,256.47,27.4328]
[1732241329826,9.83750353,256.58,256.47,27.4328]
[1732241332448,136.9,256.59,256.45,11.3524]
[1732241332449,9.83750353,256.56,256.45,11.3524]
[1732241332747,9.83750353,256.56,256.42,4.54552901]
[1732241332948,9.83750353,256.54,256.42,4.54552901]
[1732241333150,136.9,256.53,256.42,4.54552901]
[1732241334634,9.83750353,256.52,256.42,4.54552901]
[1732241334839,9.83750353,256.5,256.35,31.97832901]
[1732241335039,136.9,256.49,256.35,31.97832901]
[1732241335550,9.83750353,256.46,256.35,31.97832901]
[1732241335853,9.83750353,256.44,256.35,4.54552901]
[1732241336161,136.9,256.43,256.35,4.54552901]
[1732241336451,136.9,256.43,256.23,6.8636673]
[1732241336452,9.83750353,256.4,256.24,27.4328]
[1732241336647,39.35001412,256.49,256.24,27.4328]
[1732241336648,9.83750353,256.38,256.24,27.4328]
[1732241337349,23.776884,256.35,256.22,17.8283749]
[1732241337849,23.776884,256.33,256.22,6.4759749]
[1732241338041,23.776884,256.36,256.22,6.4759749]
[1732241338042,146.73750353,256.32,256.22,6.4759749]
[1732241338442,136.9,256.32,256.22,6.4759749]
[1732241338745,136.9,256.35,256.22,6.4759749]
[1732241338946,136.9,256.35,256.23,4.74526063]
[1732241340352,136.9,256.35,256.23,11.02148941]
[1732241340551,136.9,256.44,256.23,4.74526063]
[1732241340741,136.9,256.43,256.25,11.3524]
[1732241340936,2.5,256.53,256.25,11.3524]
[1732241340937,136.9,256.42,256.25,11.3524]
[1732241341131,136.9,256.42,256.26,27.4328]
[1732241341327,136.9,256.42,256.27,23.776884]
[1732241341534,136.9,256.42,256.27,32.6343403]
[1732241342228,136.9,256.42,256.27,35.1343403]
[1732241344252,15.4023056,256.47,256.27,4.11219567]
[1732241344434,136.9,256.41,256.27,4.11219567]
[1732241344629,136.9,256.4,256.27,4.11219567]
[1732241345348,136.9,256.4,256.28,23.776884]
[1732241346455,136.9,256.4,256.27,8.8574563]
[1732241346760,136.9,256.4,256.27,4.11219567]
[1732241347228,136.9,256.4,256.28,23.776884]
[1732241348046,136.9,256.46,256.28,23.776884]
[1732241348844,136.9,256.46,256.29,3.886]
[1732241349054,136.9,256.45,256.29,3.886]
[1732241350630,136.9,256.46,256.3,23.776884]
[1732241351080,136.9,256.46,256.29,27.662884]
[1732241354156,136.9,256.45,256.29,27.662884]
[1732241356859,136.9,256.45,256.27,4.11219567]
[1732241356860,136.9,256.45,256.28,8.63126063]
[1732241357045,136.9,256.44,256.28,8.63126063]
[1732241357859,136.9,256.44,256.28,4.74526063]
[1732241358045,136.9,256.44,256.29,23.776884]
[1732241358632,136.9,256.44,256.29,28.52214463]
[1732241358830,136.9,256.44,256.31,27.662884]
[1732241360165,23.776884,256.49,256.31,27.662884]
[1732241360963,23.776884,256.49,256.31,34.05823461]
[1732241361454,3.49657027,256.58,256.35,3.886]
[1732241361455,136.9,256.48,256.35,3.886]
[1732241361661,15.4023056,256.57,256.36,23.776884]
[1732241361839,15.4023056,256.55,256.36,23.776884]
[1732241362035,15.4023056,256.53,256.35,3.886]
[1732241362240,15.4023056,256.53,256.33,23.776884]
[1732241362936,160.676884,256.52,256.32,38.3465]
[1732241363136,23.776884,256.5,256.32,38.3465]
[1732241363443,15.4023056,256.48,256.32,38.3465]
[1732241366564,15.4023056,256.44,256.32,38.3465]
[1732241366737,15.4023056,256.42,256.32,38.3465]
[1732241366942,15.4023056,256.42,256.32,27.6083]
[1732241367153,15.4023056,256.4,256.26,10.5216]
[1732241367468,15.4023056,256.38,256.24,27.892]
[1732241369457,136.9,256.37,256.24,27.892]
[1732241371075,136.9,256.37,256.25,23.776884]
[1732241371375,136.9,256.4,256.25,32.6343403]
[1732241371563,37.6121,256.48,256.25,32.6343403]
[1732241371564,136.9,256.46,256.26,11.4133]
[1732241371876,26.283,256.48,256.26,11.4133]
[1732241371877,136.9,256.45,256.27,32.6343403]
[1732241372249,136.9,256.45,256.29,27.662884]
[1732241372448,136.9,256.45,256.29,3.886]
[1732241372761,136.9,256.44,256.29,3.886]
[1732241373161,136.9,256.44,256.29,27.662884]
[1732241373597,160.676884,256.43,256.29,3.886]
[1732241373756,23.776884,256.41,256.29,3.886]
[1732241374250,15.4023056,256.4,256.27,3.886]
[1732241374449,136.9,256.39,256.27,3.886]
[1732241375442,23.776884,256.38,256.27,3.886]
[1732241375663,23.776884,256.38,256.26,11.4133]
[1732241375969,39.1791896,256.38,256.26,11.4133]
[1732241376480,23.776884,256.36,256.26,11.4133]
[1732241377750,23.776884,256.36,256.24,27.892]
[1732241377952,39.1791896,256.34,256.24,27.892]
[1732241378153,23.776884,256.32,256.24,27.892]
[1732241378360,39.1791896,256.34,256.17,4.11219567]
[1732241378361,23.776884,256.3,256.17,4.11219567]
[1732241378566,23.776884,256.28,256.17,4.11219567]
[1732241379767,23.776884,256.28,256.16,27.8555]
[1732241380962,136.9,256.29,256.16,27.8555]
[1732241381153,23.776884,256.28,256.16,27.8555]
[1732241381481,136.9,256.29,256.16,27.8555]
[1732241383480,23.776884,256.28,256.16,27.8555]
[1732241384163,136.9,256.27,256.16,27.8555]
[1732241384472,136.9,256.33,256.17,23.776884]
[1732241384685,136.9,256.33,256.17,32.3743403]
[1732241384879,38.7459,256.43,256.17,32.3743403]
[1732241384880,136.9,256.32,256.17,32.3743403]
[1732241385087,136.9,256.32,256.2,28.6932]
[1732241386073,136.9,256.31,256.2,28.6932]
[1732241386261,160.676884,256.3,256.2,28.6932]
[1732241387684,23.776884,256.28,256.2,28.6932]
[1732241389356,23.776884,256.28,256.12,28.6932]
[1732241391108,23.776884,256.26,256.12,28.6932]
[1732241392374,136.9,256.25,256.12,28.6932]
[1732241396289,136.9,256.24,256.12,28.6932]
[1732241396487,136.9,256.23,256.12,28.6932]
[1732241399369,136.9,256.22,256.12,28.6932]
[1732241400174,136.9,256.21,256.12,28.6932]
[1732241404091,136.9,256.2,256.12,28.6932]
[1732241405580,136.9,256.19,256.12,28.6932]
[1732241406797,136.9,256.18,256.12,28.6932]
[1732241407109,136.9,256.28,256.12,28.6932]
[1732241407276,136.9,256.27,256.12,28.6932]
[1732241408085,136.9,256.27,256.12,27.71922463]
[1732241408897,23.776884,256.26,256.12,27.71922463]
[1732241410790,15.41931228,256.25,256.12,27.71922463]
[1732241410985,23.776884,256.24,256.12,27.71922463]
[1732241411203,23.776884,256.22,256.12,27.71922463]
[1732241411400,23.776884,256.2,256.06,26.4437]
[1732241411609,136.9,256.19,256.06,26.4437]
[1732241411903,136.9,256.18,256.06,26.4437]
[1732241412509,23.776884,256.17,256.06,26.4437]
[1732241413098,23.776884,256.15,256.06,26.4437]
[1732241413284,136.9,256.14,256.06,26.4437]
[1732241413484,136.9,256.13,256.06,26.4437]
[1732241414002,23.776884,256.12,255.99,37.7694]
[1732241414206,136.9,256.11,255.99,37.7694]
[1732241414802,136.9,256.11,255.99,41.88159567]
[1732241415008,136.9,256.11,256.0,4.11219567]
[1732241416509,136.9,256.11,255.99,37.7694]
[1732241417086,136.9,256.18,255.99,37.7694]
[1732241417305,160.676884,256.17,255.99,37.7694]
[1732241417993,160.676884,256.17,256.0,4.11219567]
[1732241419615,136.9,256.2,256.03,11.3257]
[1732241419911,136.9,256.2,256.04,4.11219567]
[1732241421302,136.9,256.2,256.05,26.4437]
[1732241421496,136.9,256.26,256.05,26.4437]
[1732241421797,136.9,256.25,256.05,26.4437]
[1732241422003,23.776884,256.24,256.05,26.4437]
[1732241425596,23.776884,256.24,256.05,32.8944102]
[1732241426222,23.776884,256.22,256.05,37.00660587]
[1732241426709,136.9,256.21,256.05,30.55589567]
[1732241428898,23.776884,256.2,256.05,30.55589567]
[1732241429226,136.9,256.19,256.05,26.4437]
[1732241430103,136.9,256.18,256.05,26.4437]
[1732241431130,23.776884,256.17,256.05,26.4437]
[1732241431921,23.776884,256.15,256.05,26.4437]
[1732241433117,23.776884,256.15,255.99,52.13578604]
[1732241433421,23.776884,256.13,255.99,52.13578604]
[1732241434305,33.64373759,256.11,255.99,24.36168604]
[1732241434706,39.21295554,256.11,255.99,24.36168604]
[1732241434915,39.21295554,256.11,255.93,27.7741]
[1732241435112,23.776884,256.09,255.93,27.7741]
[1732241435316,136.9,256.08,255.93,27.7741]
[1732241435623,23.776884,256.07,255.93,27.7741]
[1732241437804,23.776884,256.05,255.93,27.7741]
[1732241438118,23.776884,256.07,255.93,27.7741]
[1732241438119,23.776884,256.03,255.93,27.7741]
[1732241440405,136.9,256.02,255.93,27.7741]
[1732241441518,126.9,256.08,255.93,27.7741]
[1732241441818,15.43607154,256.07,255.93,27.7741]
[1732241442019,126.9,256.08,255.93,27.7741]
[1732241442520,23.776884,256.07,255.93,27.7741]
[1732241444019,126.9,256.06,255.94,4.43082639]
[1732241444222,17.87024767,256.18,255.94,4.43082639]
[1732241444223,126.9,256.11,255.96,10.6538]
[1732241444526,126.9,256.17,255.98,26.1814]
[1732241444720,126.9,256.16,255.99,4.43082639]
[1732241445505,126.9,256.17,256.0,23.776884]
[1732241445705,126.9,256.17,256.01,4.43082639]
[1732241446007,126.9,256.17,256.02,23.776884]
[1732241446211,126.9,256.17,256.01,4.43082639]
[1732241447729,23.776884,256.16,256.01,4.43082639]
[1732241449512,126.9,256.17,256.01,8.94799819]
[1732241449823,126.9,256.17,256.03,36.8352]
[1732241450202,126.9,256.16,256.03,36.8352]
[1732241453307,23.776884,256.22,256.03,36.8352]
[1732241454522,23.776884,256.22,256.04,26.1814]
[1732241454523,126.9,256.21,256.04,26.1814]
[1732241454708,126.9,256.2,256.04,35.12939819]
[1732241455023,126.9,256.2,256.05,23.776884]
[1732241455227,126.9,256.19,256.06,4.43082639]
[1732241455418,126.9,256.19,256.07,23.776884]
[1732241455611,126.9,256.3,256.09,34.430684]
[1732241455928,126.9,256.29,256.09,34.430684]
[1732241457712,23.776884,256.28,256.09,34.430684]
[1732241458602,23.776884,256.28,256.09,38.86151039]
[1732241459003,23.776884,256.28,256.1,4.43082639]
[1732241459227,23.776884,256.26,256.1,4.43082639]
[1732241460534,126.9,256.27,256.11,23.776884]
[1732241460707,126.9,256.27,256.12,4.43082639]
[1732241460912,26.4488,256.35,256.14,26.1814]
[1732241460913,126.9,256.32,256.14,26.1814]
[1732241461131,126.9,256.32,256.15,23.776884]
[1732241461333,126.9,256.31,256.14,30.61222639]
[1732241462227,23.776884,256.3,256.14,30.61222639]
[1732241462743,126.9,256.29,256.14,30.61222639]
[1732241463024,150.676884,256.28,256.14,30.61222639]
[1732241464437,126.9,256.27,256.14,30.61222639]
[1732241464613,23.776884,256.26,256.14,30.61222639]
[1732241464828,126.9,256.25,256.14,30.61222639]
[1732241466037,126.9,256.25,256.14,26.1814]
[1732241468324,126.9,256.24,256.14,26.1814]
[1732241470111,126.9,256.24,256.15,4.43082639]
[1732241470332,23.776884,256.33,256.15,4.43082639]
[1732241470542,126.9,256.34,256.15,4.43082639]
[1732241470543,23.776884,256.31,256.15,4.43082639]
[1732241470925,23.776884,256.31,256.16,10.7142]
[1732241471233,126.9,256.3,256.17,8.31682639]
[1732241473017,126.9,256.3,256.19,30.3453]
[1732241473336,126.9,256.3,256.2,4.43082639]
[1732241473918,9.8630838,256.4,256.2,4.43082639]
[1732241473919,23.776884,256.38,256.2,4.43082639]
[1732241474352,33.6399678,256.38,256.2,4.43082639]
[1732241474518,33.6399678,256.36,256.2,4.43082639]
[1732241475020,23.776884,256.36,256.2,4.43082639]
[1732241477231,23.776884,256.36,256.21,10.7142]
[1732241477414,126.9,256.35,256.21,10.7142]
[1732241477742,126.9,256.35,256.21,15.14502639]
[1732241479120,23.776884,256.34,256.21,15.14502639]
[1732241480346,126.9,256.33,256.21,15.14502639]
[1732241481133,126.9,256.39,256.21,15.14502639]
[1732241481629,23.776884,256.38,256.21,15.14502639]
[1732241482831,9.8630838,256.36,256.21,15.14502639]
[1732241483145,23.776884,256.35,256.21,10.7142]
[1732241483636,126.9,256.39,256.21,10.7142]
[1732241483637,23.776884,256.33,256.21,10.7142]
[1732241483835,23.776884,256.31,256.19,26.4593]
[1732241484344,23.776884,256.29,256.19,26.4593]
[1732241484648,23.776884,256.27,256.15,11.4634]
[1732241485528,23.776884,256.25,256.13,26.018]
[1732241485828,23.776884,256.23,256.13,26.018]
[1732241489439,23.776884,256.21,256.13,26.018]
[1732241490155,126.9,256.22,256.13,26.018]
[1732241491119,126.9,256.22,256.14,4.43082639]
[1732241492331,23.776884,256.32,256.14,4.43082639]
[1732241492530,23.776884,256.3,256.15,11.116]
[1732241493833,23.776884,256.25,256.15,11.116]
[1732241494032,23.776884,256.23,256.13,26.018]
[1732241494344,126.9,256.22,256.13,26.018]
[1732241494556,23.776884,256.21,256.13,26.018]
[1732241495150,126.9,256.3,256.13,26.018]
[1732241495445,126.9,256.3,256.14,8.31682639]
[1732241496232,126.9,256.3,256.15,11.116]
[1732241496634,23.776884,256.29,256.15,11.116]
[1732241498249,150.676884,256.29,256.15,11.116]
[1732241501135,150.676884,256.29,256.15,15.54682639]
[1732241501337,23.776884,256.29,256.15,15.54682639]
[1732241503057,126.9,256.34,256.15,15.54682639]
[1732241503244,23.776884,256.32,256.15,15.54682639]
[1732241503448,23.776884,256.32,256.16,4.43082639]
[1732241504362,82.1,256.42,256.16,4.43082639]
[1732241504363,126.9,256.41,256.17,26.7818]
[1732241504541,136.7630838,256.4,256.18,4.43082639]
[1732241505438,136.7630838,256.4,256.19,3.886]
[1732241505650,23.776884,256.39,256.19,3.886]
[1732241506859,153.447,256.43,256.2,62.075384]
[1732241507063,126.9,256.47,256.26,26.7818]
[1732241507262,126.9,256.46,256.26,31.21262639]
[1732241507464,126.9,256.46,256.28,26.7818]
[1732241507962,126.9,256.46,256.29,3.886]
[1732241508462,23.776884,256.45,256.29,3.886]
[1732241508676,23.776884,256.45,256.29,11.5167]
[1732241509038,23.776884,256.45,256.3,3.886]
[1732241509445,126.9,256.51,256.31,26.7818]
[1732241509769,126.9,256.54,256.31,31.21262639]
[1732241509942,126.9,256.53,256.31,31.21262639]
[1732241510249,126.9,256.53,256.32,3.886]
[1732241511168,126.9,256.54,256.34,3.886]
[1732241511461,126.9,256.56,256.36,26.7818]
[1732241511661,126.9,256.56,256.37,11.5167]
[1732241511848,4.98285135,256.58,256.37,12.10154706]
[1732241512361,4.98285135,256.58,256.38,26.7818]
[1732241513866,23.776884,256.57,256.38,26.7818]
[1732241514244,23.776884,256.57,256.38,31.21262639]
[1732241514962,4.98285135,256.58,256.4,62.075384]
[1732241515142,4.98285135,256.58,256.42,26.7818]
[1732241515340,4.98285135,256.58,256.43,5.0155595]
[1732241515570,4.98285135,256.58,256.46,26.7818]
[1732241515743,4.98285135,256.58,256.47,4.43082639]
[1732241520555,4.98285135,256.58,256.47,8.31682639]
[1732241520949,4.98285135,256.58,256.5,23.776884]
[1732241521144,4.98285135,256.58,256.51,4.43082639]
[1732241524581,4.98285135,256.58,256.52,26.7818]
[1732241524865,4.98285135,256.58,256.53,4.43082639]
[1732241525862,194.52539067,257.04,256.53,4.43082639]
[1732241525863,3.24,257.21,257.02,22.5]
[1732241526066,2.5,257.48,257.09,3.886]
[1732241526368,15.37605318,257.42,257.05,3.08302873]
[1732241526570,15.37605318,257.43,257.23,2.5]
[1732241526879,24.45268596,257.47,257.27,2.5]
[1732241527078,24.45268596,257.52,257.31,5.0]
[1732241527246,11.01793394,257.55,257.35,2.5]
[1732241527247,24.45268596,257.54,257.35,2.5]
[1732241527445,24.45268596,257.49,257.44,94.47903557]
[1732241527760,24.45268596,257.47,257.44,94.47903557]
[1732241528149,24.45268596,257.47,257.45,28.67508852]
[1732241529279,23.776884,257.46,257.44,94.47903557]
[1732241529447,24.45268596,257.45,257.44,94.47903557]
[1732241530662,44.45268596,257.45,257.44,94.47903557]
[1732241530864,68.22956996,257.45,257.44,53.05308891]
[1732241531065,68.22956996,257.45,257.43,81.42049471]
[1732241531373,43.776884,257.44,257.43,81.42049471]
[1732241531563,23.776884,257.44,257.43,81.42049471]
[1732241532676,43.776884,257.44,257.43,81.42049471]
[1732241533175,47.661284,257.44,257.43,81.42049471]
[1732241533472,164.88575758,257.44,257.43,12.20209471]
[1732241533671,23.776884,257.42,257.35,119.06758009]
[1732241533874,68.22956996,257.36,257.35,119.06758009]
[1732241534074,161.00135758,257.36,257.35,119.06758009]
[1732241534880,164.88695758,257.36,257.35,119.06758009]
[1732241535071,188.19695758,257.36,257.35,1.10214739]
[1732241535271,20.0,257.35,257.12,2.5]
[1732241535581,23.776884,257.17,257.07,6.386]
[1732241535797,23.776884,257.15,257.07,6.366]
[1732241536083,23.776884,257.13,257.07,6.366]
[1732241536282,23.776884,257.11,257.06,3.846]
[1732241536465,36.0779174,257.1,257.01,28.72148586]
[1732241536665,139.15768144,257.09,257.01,28.72148586]
[1732241536868,67.00184661,257.08,257.01,28.72148586]
[1732241537062,18.0389587,257.07,257.01,28.72148586]
[1732241537269,7.7309823,257.06,257.02,3.886]
[1732241537490,103.07976402,257.05,257.02,3.886]
[1732241537677,18.0389587,257.04,257.02,3.886]
[1732241537865,103.07976403,257.03,257.02,3.886]
[1732241538190,46.38589382,257.14,257.08,2.5]
[1732241538366,51.38472248,257.13,257.12,2.5]
[1732241538566,51.38472248,257.13,257.09,2.5]
[1732241538868,51.38472248,257.13,257.12,2.5]
[1732241539476,51.38472248,257.13,257.1,2.5]
[1732241539676,51.38472248,257.13,257.02,18.32750106]
[1732241539873,93.13434749,257.1,257.02,8.52750106]
[1732241540569,52.62651864,257.03,257.02,4.64150106]
[1732241540769,93.13434749,257.1,257.02,4.64150106]
[1732241542073,93.13434749,257.1,257.03,0.58338432]
[1732241542591,93.13434749,257.1,257.02,4.64150106]
[1732241543686,24.45268596,257.21,257.11,2.5]
[1732241543889,24.45268596,257.23,257.11,2.5]
[1732241544090,24.45268596,257.19,257.08,2.5]
[1732241544265,24.45268596,257.21,257.08,5.0]
[1732241544575,24.45268596,257.21,257.12,2.5]
[1732241544784,24.45268596,257.23,257.12,2.5]
[1732241545185,24.45268596,257.25,257.14,2.5]
[1732241545376,24.45268596,257.25,257.14,5.0]
[1732241545685,20.0,257.33,257.14,24.1311872]
[1732241545887,6.33048959,257.34,257.26,46.17015237]
[1732241545888,24.45268596,257.28,257.26,46.17015237]
[1732241546275,24.45268596,257.3,257.26,46.17015237]
[1732241546477,24.45268596,257.32,257.28,46.17015237]
[1732241546895,24.45268596,257.3,257.28,46.17015237]
[1732241547190,24.45268596,257.3,257.2,2.5]
[1732241547394,24.45268596,257.28,257.15,5.0]
[1732241547687,24.45268596,257.26,257.17,2.5]
[1732241547895,24.45268596,257.26,257.15,2.5]
[1732241548073,24.45268596,257.26,257.13,2.5]
[1732241548272,24.45268596,257.26,257.14,2.5]
[1732241548875,24.45268596,257.26,257.14,5.0]
[1732241549188,24.45268596,257.26,257.12,5.0]
[1732241549500,24.45268596,257.24,257.12,2.5]
[1732241549788,24.45268596,257.22,257.12,2.5]
[1732241550002,24.45268596,257.2,257.12,2.5]
[1732241550573,23.776884,257.19,257.08,2.5]
[1732241552974,24.45268596,257.31,257.13,5.0]
[1732241553198,24.45268596,257.29,257.13,5.0]
[1732241553580,24.45268596,257.27,257.12,2.5]
[1732241553812,24.45268596,257.27,257.11,2.5]
[1732241554303,23.776884,257.26,257.13,2.5]
[1732241554798,23.776884,257.24,257.11,2.5]
[1732241555002,23.776884,257.24,257.13,2.5]
[1732241555976,23.776884,257.26,257.13,2.5]
[1732241556178,23.776884,257.26,257.14,2.5]
[1732241557991,23.776884,257.26,257.13,2.5]
[1732241558814,24.45268596,257.21,257.08,7.14150106]
[1732241559100,23.776884,257.2,257.08,7.14150106]
[1732241559599,23.776884,257.22,257.12,2.5]
[1732241560484,23.776884,257.22,257.08,9.64150106]
[1732241560896,23.776884,257.22,257.1,2.5]
[1732241561485,23.776884,257.22,257.08,9.64150106]
[1732241561702,24.45268596,257.17,257.03,2.5]
[1732241561908,24.45268596,257.15,257.02,2.5]
[1732241562204,24.45268596,257.15,257.01,2.5]
[1732241562499,24.45268596,257.15,257.05,2.5]
[1732241562800,24.45268596,257.15,257.03,5.0]
[1732241563205,24.45268596,257.15,257.03,2.5]
[1732241563392,24.45268596,257.15,257.01,5.0]
[1732241563996,23.776884,257.14,257.01,5.0]
[1732241564386,24.45268596,257.13,257.01,2.5]
[1732241564589,23.776884,257.12,257.01,2.5]
[1732241565293,23.776884,257.14,257.01,2.5]
[1732241569288,23.71742271,257.14,257.01,2.5]
[1732241569900,24.45268596,257.19,257.03,2.5]
[1732241570204,24.45268596,257.23,257.09,5.0]
[1732241570705,15.30177649,257.23,257.09,5.0]
[1732241571285,15.30177649,257.21,257.09,5.0]
[1732241572119,23.776884,257.2,257.09,5.0]
[1732241572414,23.776884,257.2,257.04,2.5]
[1732241572415,15.30177649,257.17,257.04,2.5]
[1732241572601,23.776884,257.16,257.06,2.5]
[1732241572992,23.776884,257.18,257.06,2.5]
[1732241573891,23.776884,257.18,257.06,5.0]
[1732241574091,23.776884,257.18,257.09,2.5]
[1732241574293,23.776884,257.18,257.06,2.5]
[1732241574500,23.776884,257.18,257.04,2.5]
[1732241574900,23.776884,257.18,257.04,5.0]
[1732241576006,23.776884,257.2,257.04,5.0]
[1732241576518,23.776884,257.2,257.07,2.5]
[1732241576699,24.49533392,257.21,257.07,2.5]
[1732241577101,24.49533392,257.21,257.05,2.5]
[1732241577403,24.49533392,257.21,257.07,2.5]
[1732241577922,23.776884,257.2,257.07,2.5]
[1732241578309,23.776884,257.2,257.08,2.5]
[1732241578815,24.49533392,257.19,257.04,5.0]
[1732241579124,23.776884,257.18,257.04,5.0]
[1732241579701,23.776884,257.18,257.06,2.5]
[1732241580025,23.776884,257.18,257.04,5.0]
[1732241580722,23.776884,257.18,257.04,2.5]
[1732241581135,23.776884,257.18,257.02,5.0]
[1732241581136,23.776884,257.16,257.02,5.0]
[1732241581514,24.49533392,257.13,257.0,2.5]
[1732241581822,23.776884,257.12,257.0,2.5]
[1732241582325,24.49533392,257.09,256.98,16.08140106]
[1732241582524,24.49533392,257.09,256.98,11.4399]
[1732241582525,23.776884,257.08,256.98,11.4399]
[1732241583019,23.776884,257.1,256.98,11.4399]
[1732241583321,24.49533392,257.13,257.0,2.5]
[1732241583529,24.49533392,257.17,257.03,2.5]
[1732241583711,24.49533392,257.19,257.04,2.5]
[1732241583912,24.49533392,257.21,257.06,2.5]
[1732241584622,3.8875,257.24,257.06,2.5]
[1732241584826,24.49533392,257.2,257.06,2.5]
[1732241585117,24.49533392,257.18,257.06,2.5]
[1732241585423,23.776884,257.17,257.06,2.5]
[1732241585805,24.49533392,257.2,257.09,2.5]
[1732241586009,23.776884,257.19,257.09,2.5]
[1732241586330,23.776884,257.19,257.06,2.5]
[1732241586520,23.776884,257.17,257.06,2.5]
[1732241588528,23.776884,257.19,257.08,2.5]
[1732241588826,23.776884,257.19,257.07,2.5]
[1732241589521,23.776884,257.19,257.05,5.0]
[1732241589722,23.776884,257.19,257.01,36.42090106]
[1732241589723,23.776884,257.17,257.03,5.0]
[1732241590410,23.776884,257.17,257.03,2.5]
[1732241591010,32.2445,257.25,257.07,2.5]
[1732241591011,24.49533392,257.2,257.07,2.5]
[1732241591266,23.776884,257.21,257.12,2.5]